bitfinex/quotes_BTCUSD_20240715
["timestamp","ask_amount","ask_price","bid_price","bid_amount"]
[1721051211408,0.50797159,62932.0,62931.0,0.253813]
[1721051211759,0.02826759,62932.0,62931.0,0.412717]
[1721051211953,0.03526759,62932.0,62931.0,1.108333]
[1721051212223,0.02826759,62932.0,62931.0,0.731525]
[1721051212434,0.15889,62937.0,62936.0,0.111]
[1721051212645,0.15889,62937.0,62932.0,0.158901]
[1721051212646,0.00306353,62946.0,62944.0,0.111]
[1721051212848,0.00306353,62946.0,62941.0,0.158878]
[1721051212849,0.00306353,62946.0,62945.0,0.329868]
[1721051213046,0.317694,62954.0,62953.0,0.111]
[1721051213247,0.3460031,62954.0,62953.0,0.111]
[1721051213469,0.5048491,62954.0,62953.0,0.111]
[1721051213610,0.5048491,62954.0,62945.0,0.260567]
[1721051213611,0.158853,62952.0,62945.0,0.260567]
[1721051213808,0.1871631,62951.0,62945.0,0.1017]
[1721051214009,0.02841807,62950.0,62947.0,0.158861]
[1721051214353,0.02841807,62949.0,62947.0,0.158861]
[1721051214504,0.02841807,62948.0,62947.0,0.158861]
[1721051214718,0.158854,62951.0,62947.0,0.158861]
[1721051214719,0.02841807,62950.0,62947.0,0.158861]
[1721051214921,0.02841807,62949.0,62947.0,0.158861]
[1721051215144,0.158854,62951.0,62947.0,0.158861]
[1721051215350,0.02836055,62950.0,62947.0,0.158861]
[1721051215552,0.158851,62952.0,62946.0,0.1]
[1721051215754,0.158851,62952.0,62947.0,0.158862]
[1721051216160,0.001,62949.0,62947.0,0.160862]
[1721051216507,0.001,62949.0,62948.0,0.596583]
[1721051216709,0.001,62950.0,62948.0,0.596583]
[1721051216710,0.001,62950.0,62949.0,0.741875]
[1721051216874,0.158824,62963.0,62958.0,0.079]
[1721051217070,0.317641,62965.0,62958.0,0.079]
[1721051217071,0.0282402,62959.0,62958.0,0.079]
[1721051217332,0.158826,62962.0,62958.0,0.079]
[1721051217789,0.159661,62960.0,62958.0,0.079]
[1721051218421,0.00083,62960.0,62958.0,0.079]
[1721051219411,0.00083,62960.0,62959.0,0.974367]
[1721051219858,0.00383,62960.0,62959.0,1.33415191]
[1721051220080,0.00383,62960.0,62959.0,1.43415191]
[1721051220308,0.00383,62960.0,62959.0,1.55415191]
[1721051220540,0.00083,62960.0,62959.0,2.61517129]
[1721051220784,0.00083,62976.0,62975.0,0.158793]
[1721051221100,0.00083,62976.0,62975.0,0.476379]
[1721051221313,0.00083,62976.0,62975.0,0.158793]
[1721051222702,0.00083,62976.0,62974.0,0.300895]
[1721051223142,0.159621,62976.0,62974.0,0.1421]
[1721051223398,0.00183,62976.0,62975.0,0.007]
[1721051223598,0.00183,62976.0,62975.0,1.15948291]
[1721051223819,0.00276567,62995.0,62994.0,0.158745]
[1721051224069,0.00306353,63000.0,62995.0,0.0646]
[1721051224188,0.222334,63006.0,63000.0,0.158728]
[1721051224426,0.222334,63006.0,63001.0,0.158727]
[1721051224623,0.222334,63006.0,62999.0,0.317465]
[1721051224624,0.063619,63006.0,63003.0,0.158721]
[1721051225059,0.00834,63008.0,63003.0,0.158721]
[1721051225232,0.00834,63008.0,63004.0,0.06317419]
[1721051225436,0.16705,63008.0,63007.0,0.061]
[1721051225666,0.80189,63008.0,63007.0,0.061]
[1721051225877,0.80189,63008.0,63001.0,0.1]
[1721051225878,0.00834,63008.0,63001.0,0.161]
[1721051226081,0.158723,63003.0,63001.0,0.161]
[1721051226348,0.00834,63008.0,63001.0,0.161]
[1721051226349,0.317426,63007.0,63001.0,0.161]
[1721051226597,0.01434,63008.0,63004.0,0.158718]
[1721051226810,0.01434,63008.0,63001.0,0.161]
[1721051226811,0.00834,63008.0,63002.0,0.158723]
[1721051226967,0.158712,63007.0,63003.0,0.1]
[1721051227595,0.158712,63007.0,63001.0,0.062]
[1721051227596,0.158723,63003.0,63001.0,0.062]
[1721051227759,0.158718,63005.0,63001.0,0.063]
[1721051228130,0.014,63007.0,63002.0,0.317449]
[1721051228281,0.014,63007.0,63003.0,0.158721]
[1721051228727,0.014,63007.0,63002.0,0.00317414]
[1721051228906,0.014,63007.0,63002.0,0.00417414]
[1721051229108,0.158713,63007.0,63002.0,0.16289814]
[1721051229306,0.00834,63008.0,63002.0,0.16189814]
[1721051229505,0.014,63007.0,63003.0,0.159721]
[1721051229708,0.02,63007.0,63003.0,0.002]
[1721051229909,0.006,63007.0,63004.0,0.158719]
[1721051230274,0.014,63007.0,63006.0,0.158714]
[1721051230444,0.014,63007.0,63006.0,0.95569191]
[1721051230583,0.00834,63008.0,63006.0,0.95569191]
[1721051230584,0.01434,63008.0,63007.0,0.476137]
[1721051230791,0.01434,63008.0,63007.0,1.08797991]
[1721051230988,0.01434,63008.0,63007.0,0.45312991]
[1721051231327,0.17305,63008.0,63007.0,0.1463]
[1721051231520,0.01434,63008.0,63007.0,0.1463]
[1721051231845,0.16705,63008.0,63007.0,0.1463]
[1721051232042,0.006,63007.0,63004.0,0.001]
[1721051232312,0.793587,63005.0,63004.0,0.001]
[1721051232439,1.231022,63005.0,63004.0,0.001]
[1721051232640,0.006,63007.0,62992.0,0.0758]
[1721051232641,0.793737,62993.0,62992.0,0.0758]
[1721051232854,0.06,63001.0,62986.0,0.142]
[1721051232855,0.158762,62987.0,62986.0,0.142]
[1721051233058,0.08105238,63003.0,62986.0,0.142]
[1721051233059,0.317514,62990.0,62986.0,0.142]
[1721051233260,0.08105238,63003.0,62986.0,0.142]
[1721051233261,0.158754,62991.0,62986.0,0.142]
[1721051233519,0.158754,62991.0,62986.0,0.30393896]
[1721051233664,0.317441,63004.0,62986.0,0.30729287]
[1721051233872,0.1632,63014.0,62993.0,0.317494]
[1721051233873,0.0632,63014.0,62993.0,0.317494]
[1721051234072,0.158718,63005.0,62998.0,0.1452]
[1721051234324,0.158715,63006.0,63000.0,0.158729]
[1721051234524,0.16705,63008.0,63002.0,0.158723]
[1721051234723,0.00834,63008.0,63004.0,0.317439]
[1721051235077,0.00834,63008.0,63003.0,0.16529214]
[1721051235078,0.00834,63008.0,63006.0,0.158715]
[1721051235267,0.00834,63008.0,63006.0,0.16188895]
[1721051235403,0.00834,63008.0,63006.0,0.00317395]
[1721051235604,0.00834,63008.0,63004.0,0.00317403]
[1721051235816,0.00834,63008.0,63007.0,0.476137]
[1721051236017,0.0822,63030.0,63008.0,0.06]
[1721051236018,0.317312,63030.0,63008.0,0.06]
[1721051236219,0.317312,63030.0,63020.0,0.1419]
[1721051236419,0.158665,63026.0,63021.0,0.158677]
[1721051236640,0.158665,63026.0,63020.0,0.29775223]
[1721051236853,0.158667,63026.0,63020.0,0.13407323]
[1721051237052,0.158667,63026.0,63020.0,0.29275223]
[1721051237250,0.01434,63023.0,63020.0,0.13407323]
[1721051237453,0.01434,63023.0,63021.0,0.158675]
[1721051237654,0.01434,63023.0,63020.0,0.13407323]
[1721051237853,0.01434,63023.0,63020.0,0.1309]
[1721051238531,0.01434,63023.0,63008.0,0.101]
[1721051238737,0.158694,63015.0,63010.0,0.1]
[1721051238970,0.158694,63015.0,63010.0,0.258704]
[1721051239183,0.317383,63016.0,63005.0,0.0626]
[1721051239390,0.00834,63023.0,63008.0,0.158708]
[1721051239595,0.00834,63023.0,63020.0,0.001]
[1721051239596,0.476031,63021.0,63020.0,0.001]
[1721051239806,0.476031,63021.0,63008.0,0.16211791]
[1721051239807,0.158704,63011.0,63008.0,0.16211791]
[1721051240022,0.158704,63011.0,63003.0,0.31744]
[1721051240023,0.317431,63006.0,62999.0,0.1395]
[1721051240228,0.317431,63006.0,62988.0,0.2675]
[1721051240229,0.317431,63006.0,62991.0,0.0773]
[1721051240230,0.15875,62992.0,62991.0,0.0773]
[1721051240433,0.158742,62996.0,62991.0,0.0773]
[1721051240640,0.158742,62996.0,62991.0,0.23922471]
[1721051240844,0.158727,63002.0,62991.0,0.24259262]
[1721051241042,0.158739,62997.0,62991.0,0.0773]
[1721051241246,0.158739,62997.0,62981.0,0.06]
[1721051241247,0.00834,63023.0,63022.0,0.158674]
[1721051241521,0.00834,63023.0,63022.0,0.476023]
[1721051241751,0.00834,63023.0,63022.0,0.793372]
[1721051241958,0.00834,63023.0,63022.0,1.110721]
[1721051242213,0.00834,63023.0,63022.0,1.36083891]
[1721051242412,0.00832,63033.0,63032.0,0.475948]
[1721051242651,0.00832,63033.0,63032.0,0.88176591]
[1721051243103,0.00832,63033.0,63032.0,1.19906491]
[1721051243416,0.00832,63033.0,63032.0,0.88176591]
[1721051243815,0.00932,63033.0,63032.0,0.88176591]
[1721051244031,0.00932,63033.0,63032.0,1.19906491]
[1721051244255,0.00832,63037.0,63036.0,0.793197]
[1721051244488,0.00832,63037.0,63036.0,1.05531491]
[1721051244689,0.00832,63037.0,63036.0,1.49259391]
[1721051244889,0.00832,63037.0,63036.0,1.54412398]
[1721051245224,0.00832,63037.0,63036.0,1.48412398]
[1721051245422,0.00832,63037.0,63036.0,1.54412398]
[1721051245624,0.00832,63037.0,63036.0,2.01162398]
[1721051245923,0.00832,63037.0,63036.0,2.27139382]
[1721051246124,0.00932,63037.0,63036.0,2.57339382]
[1721051246348,0.01032,63037.0,63036.0,2.6349902]
[1721051246868,0.00832,63037.0,63036.0,2.83715191]
[1721051247113,0.00834,63039.0,63036.0,2.83715191]
[1721051247114,0.00834,63039.0,63038.0,0.846134]
[1721051247314,0.001,63049.0,63038.0,0.846134]
[1721051247315,0.001,63049.0,63043.0,1.163364]
[1721051247513,0.001,63049.0,63043.0,2.17609713]
[1721051247720,0.001,63049.0,63043.0,2.67365288]
[1721051247928,0.001,63049.0,63043.0,2.99089588]
[1721051248127,0.001,63049.0,63043.0,3.06579588]
[1721051248325,0.001,63049.0,63043.0,3.08879588]
[1721051248683,0.001,63049.0,63048.0,2.114981]
[1721051248942,0.001,63049.0,63048.0,2.58667299]
[1721051249137,0.001,63049.0,63048.0,2.95248737]
[1721051249725,0.001,63049.0,63048.0,2.85981691]
[1721051249954,0.001,63049.0,63048.0,2.63526937]
[1721051250164,0.001,63049.0,63048.0,2.58667299]
[1721051250507,0.001,63049.0,63048.0,2.41226937]
[1721051250702,0.001,63049.0,63048.0,2.37267299]
[1721051250908,0.001,63049.0,63048.0,2.27267299]
[1721051251112,0.001,63049.0,63048.0,2.1095699]
[1721051251327,0.001,63049.0,63048.0,1.2551339]
[1721051251569,0.001,63049.0,63048.0,0.009]
[1721051251837,0.306906,63049.0,63048.0,0.009]
[1721051252044,0.624119,63049.0,63048.0,0.003]
[1721051252294,0.624119,63049.0,63036.0,0.158637]
[1721051252295,0.158625,63042.0,63036.0,0.158637]
[1721051252588,0.14105238,63040.0,63024.0,0.04548205]
[1721051252757,0.14105238,63040.0,63023.0,0.317343]
[1721051252758,0.158647,63033.0,63023.0,0.317343]
[1721051252894,0.00306353,63039.0,63028.0,0.317316]
[1721051253072,0.00306353,63039.0,63016.0,0.0613]
[1721051253073,0.00306353,63039.0,63029.0,0.16529077]
[1721051253277,0.001,63049.0,63029.0,0.16529077]
[1721051253278,0.0657,63048.0,63042.0,0.158622]
[1721051253477,0.001,63049.0,63042.0,0.00317222]
[1721051253682,0.001,63049.0,63048.0,0.158609]
[1721051253882,0.001,63049.0,63048.0,0.95516291]
[1721051254140,0.001,63049.0,63048.0,1.27238091]
[1721051254550,0.001,63049.0,63048.0,0.95516291]
[1721051254746,0.00092548,63049.0,63048.0,1.05516291]
[1721051254991,0.00092548,63049.0,63048.0,0.258609]
[1721051255834,0.00492548,63049.0,63048.0,0.893045]
[1721051256237,0.00092548,63049.0,63048.0,1.37238091]
[1721051256395,0.00092548,63049.0,63048.0,1.49238091]
[1721051256608,0.00092548,63049.0,63048.0,1.81159891]
[1721051257409,0.00834,63051.0,63050.0,1.110228]
[1721051257631,0.00834,63051.0,63050.0,1.37234591]
[1721051257901,0.00834,63051.0,63050.0,1.05513791]
[1721051258412,0.00834,63051.0,63050.0,1.37234591]
[1721051258608,0.00834,63051.0,63050.0,0.575812]
[1721051259009,0.00834,63051.0,63050.0,0.1]
[1721051259296,0.857532,63049.0,63048.0,0.013]
[1721051259505,0.0645,63049.0,63048.0,0.013]
[1721051259641,0.0645,63049.0,63045.0,0.158614]
[1721051259837,0.00306353,63048.0,63038.0,0.317265]
[1721051260041,0.00306353,63048.0,63047.0,0.475834]
[1721051260465,0.00834,63051.0,63050.0,0.475812]
[1721051260661,0.00834,63051.0,63050.0,1.27234591]
[1721051261064,0.00834,63051.0,63050.0,1.39234591]
[1721051261260,0.00834,63051.0,63050.0,1.27234591]
[1721051261463,0.00834,63051.0,63050.0,1.37234591]
[1721051261711,0.00834,63051.0,63050.0,1.80955391]
[1721051262147,0.00834,63051.0,63050.0,1.68955391]
[1721051262311,0.00834,63051.0,63050.0,1.80455391]
[1721051263044,0.00834,63051.0,63050.0,1.05013791]
[1721051263189,0.00834,63051.0,63050.0,0.273604]
[1721051263389,0.00834,63051.0,63050.0,0.015]
[1721051263594,0.484144,63051.0,63050.0,0.015]
[1721051263795,1.11855,63051.0,63050.0,0.015]
[1721051264224,1.11855,63051.0,63050.0,0.008]
[1721051264423,0.801347,63051.0,63050.0,0.008]
[1721051264759,0.801347,63051.0,63050.0,0.019]
[1721051265082,0.484144,63051.0,63050.0,0.019]
[1721051265286,0.166941,63051.0,63050.0,0.019]
[1721051265494,0.166941,63051.0,63050.0,0.011]
[1721051265946,0.170941,63051.0,63050.0,0.011]
[1721051266147,0.488144,63051.0,63050.0,0.011]
[1721051266445,0.158613,63047.0,63042.0,0.158623]
[1721051266670,0.486146,63051.0,63044.0,0.158617]
[1721051266861,0.493146,63051.0,63050.0,0.001]
[1721051267266,0.01534,63051.0,63050.0,0.001]
[1721051267645,0.01134,63051.0,63050.0,0.79402]
[1721051268051,0.01134,63051.0,63050.0,1.111228]
[1721051268230,0.01134,63051.0,63050.0,1.211228]
[1721051268429,0.01134,63051.0,63050.0,0.89402]
[1721051269074,0.01634,63051.0,63050.0,0.89402]
[1721051269524,0.01634,63051.0,63050.0,1.37334591]
[1721051269525,0.01134,63051.0,63050.0,1.37334591]
[1721051269669,0.01134,63051.0,63050.0,1.37434591]
[1721051269670,0.01634,63051.0,63050.0,1.37434591]
[1721051269849,0.01634,63051.0,63050.0,1.05713791]
[1721051270052,0.01634,63051.0,63050.0,0.89502]
[1721051270476,0.01634,63051.0,63050.0,1.37434591]
[1721051270884,0.01334,63051.0,63050.0,1.37334591]
[1721051271084,0.01334,63051.0,63050.0,0.101]
[1721051271281,0.01334,63051.0,63050.0,0.001]
[1721051271483,0.638144,63051.0,63050.0,0.002]
[1721051271687,0.955347,63051.0,63050.0,0.002]
[1721051271886,0.978347,63051.0,63050.0,0.002]
[1721051274877,0.16234,63051.0,63050.0,0.002]
[1721051275584,0.01534,63051.0,63050.0,0.477812]
[1721051277395,0.01534,63051.0,63050.0,0.79502]
[1721051277839,0.01534,63051.0,63050.0,1.112228]
[1721051278004,0.01534,63051.0,63050.0,1.81155391]
[1721051278352,0.01534,63051.0,63050.0,1.94328866]
[1721051278525,0.01534,63051.0,63050.0,1.82328866]
[1721051278767,0.01334,63051.0,63050.0,1.37334591]
[1721051279359,0.01334,63051.0,63050.0,1.49334591]
[1721051279561,0.01334,63051.0,63050.0,1.37334591]
[1721051279718,0.00834,63051.0,63050.0,1.05513791]
[1721051280123,0.01134,63051.0,63050.0,1.37234591]
[1721051280324,0.00834,63051.0,63050.0,1.69234591]
[1721051280699,0.00834,63051.0,63050.0,1.94220522]
[1721051280824,0.00834,63051.0,63050.0,2.14920522]
[1721051281026,0.00834,63051.0,63050.0,2.14919018]
[1721051281233,0.00834,63051.0,63050.0,1.94919018]
[1721051281433,0.00834,63051.0,63050.0,2.15219018]
[1721051281926,0.00834,63051.0,63050.0,2.14219018]
[1721051282153,0.00834,63051.0,63050.0,1.82219018]
[1721051282352,0.00834,63051.0,63050.0,0.907933]
[1721051282550,0.00834,63051.0,63050.0,0.590725]
[1721051282761,0.00834,63051.0,63050.0,1.07005091]
[1721051282958,0.00834,63051.0,63050.0,0.287517]
[1721051283161,0.00834,63051.0,63050.0,0.187517]
[1721051283422,0.00834,63051.0,63050.0,0.014913]
[1721051283702,0.00834,63051.0,63050.0,0.022913]
[1721051283928,0.00834,63051.0,63050.0,0.340121]
[1721051284104,0.00834,63051.0,63050.0,0.9732227]
[1721051284242,0.00834,63051.0,63050.0,1.4104307]
[1721051284445,0.00834,63051.0,63050.0,1.2974307]
[1721051284642,0.00834,63051.0,63050.0,1.2764307]
[1721051285097,0.00834,63051.0,63050.0,1.2874307]
[1721051285453,0.00834,63051.0,63050.0,0.476725]
[1721051285681,0.00834,63051.0,63050.0,0.159517]
[1721051285919,0.00834,63051.0,63050.0,0.486725]
[1721051286180,0.00834,63051.0,63050.0,0.169517]
[1721051286382,0.00834,63051.0,63050.0,0.010913]
[1721051286383,0.07444,63051.0,63050.0,0.010913]
[1721051286586,0.946747,63051.0,63050.0,0.010913]
[1721051286763,1.31031868,63051.0,63050.0,0.010913]
[1721051287178,0.99311568,63051.0,63050.0,0.010913]
[1721051287614,0.65291268,63051.0,63050.0,0.017913]
[1721051287778,0.946747,63051.0,63050.0,0.017913]
[1721051287955,0.946747,63051.0,63050.0,0.007913]
[1721051288154,0.15774,63051.0,63050.0,0.007913]
[1721051288358,0.15774,63051.0,63050.0,0.000913]
[1721051288601,0.01234,63051.0,63050.0,1.27325891]
[1721051288806,0.01234,63051.0,63050.0,1.71046691]
[1721051289061,0.00834,63051.0,63050.0,1.99151929]
[1721051289439,0.00834,63051.0,63050.0,1.89151929]
[1721051289662,0.01234,63051.0,63050.0,1.89151929]
[1721051289832,0.01734,63051.0,63050.0,1.89251929]
[1721051290035,0.01734,63051.0,63050.0,1.49425891]
[1721051290260,0.01234,63051.0,63050.0,1.37325891]
[1721051290492,0.01234,63051.0,63050.0,1.49325891]
[1721051290670,0.01234,63051.0,63050.0,1.69325891]
[1721051290873,0.01234,63051.0,63050.0,1.70025891]
[1721051291216,0.01234,63051.0,63050.0,1.50025891]
[1721051291877,0.01234,63051.0,63050.0,1.49325891]
[1721051291878,0.00834,63051.0,63050.0,1.49325891]
[1721051292051,0.00834,63051.0,63050.0,1.38325891]
[1721051292250,0.00834,63051.0,63050.0,1.50325891]
[1721051292465,0.00834,63051.0,63050.0,1.38325891]
[1721051292675,0.00834,63051.0,63050.0,1.49325891]
[1721051293155,0.00834,63051.0,63050.0,1.07005091]
[1721051293410,0.00834,63051.0,63050.0,1.08405091]
[1721051293591,0.00834,63051.0,63050.0,1.40125891]
[1721051293787,0.00834,63051.0,63050.0,0.028913]
[1721051294423,0.9059025,63051.0,63050.0,0.028913]
[1721051294594,0.9059025,63051.0,63050.0,0.014913]
[1721051294595,0.9289025,63051.0,63050.0,0.014913]
[1721051294793,0.92917143,63051.0,63050.0,0.014913]
[1721051295002,0.92917321,63051.0,63050.0,0.014913]
[1721051295205,1.87132515,63051.0,63050.0,0.014913]
[1721051295399,1.38973974,63051.0,63050.0,0.014913]
[1721051295609,1.48463363,63051.0,63050.0,0.000913]
[1721051295810,1.4815701,63051.0,63050.0,0.000913]
[1721051295988,1.38667621,63051.0,63050.0,0.014913]
[1721051296175,1.30868736,63051.0,63050.0,0.014913]
[1721051296370,1.30868736,63051.0,63050.0,0.000913]
[1721051296371,1.37821505,63051.0,63050.0,0.000913]
[1721051296674,1.42425747,63051.0,63050.0,0.000913]
[1721051296963,1.43025747,63051.0,63050.0,0.001913]
[1721051297112,1.40652752,63051.0,63050.0,0.001913]
[1721051297579,1.31362383,63051.0,63050.0,0.002913]
[1721051297932,1.43225212,63051.0,63050.0,0.002913]
[1721051298152,1.44349047,63051.0,63050.0,0.002913]
[1721051298591,1.68454285,63051.0,63050.0,0.002913]
[1721051298725,2.20174585,63051.0,63050.0,0.002913]
[1721051298926,2.09359047,63051.0,63050.0,0.002913]
[1721051299150,1.94584342,63051.0,63050.0,0.002913]
[1721051299426,1.80349047,63051.0,63050.0,0.002913]
[1721051299624,2.32069347,63051.0,63050.0,0.002913]
[1721051299823,2.31469347,63051.0,63050.0,0.001913]
[1721051300324,1.80249047,63051.0,63050.0,0.002913]
[1721051300516,1.94278252,63051.0,63050.0,0.001913]
[1721051300657,2.01769347,63051.0,63050.0,0.001913]
[1721051300855,1.70785,63051.0,63050.0,0.002913]
[1721051301070,1.81041837,63051.0,63050.0,0.001913]
[1721051301272,2.32762137,63051.0,63050.0,0.001913]
[1721051301471,2.12862137,63051.0,63050.0,0.002913]
[1721051301674,2.13138221,63051.0,63050.0,0.002913]
[1721051301952,1.81417921,63051.0,63050.0,0.002913]
[1721051302095,1.95643069,63051.0,63050.0,0.002913]
[1721051302274,1.81417921,63051.0,63050.0,0.002913]
[1721051302475,2.33138221,63051.0,63050.0,0.001913]
[1721051302676,2.61648221,63051.0,63050.0,0.001913]
[1721051302880,2.61648221,63051.0,63024.0,0.08105238]
[1721051302881,0.065,63036.0,63024.0,0.08105238]
[1721051303145,0.04741551,63033.0,63031.0,0.4863143]
[1721051303372,0.03375731,63032.0,63018.0,0.158683]
[1721051303584,0.07040244,63031.0,63014.0,0.158694]
[1721051303781,0.239975,63022.0,63016.0,0.158688]
[1721051303928,0.0813,63022.0,63018.0,0.158683]
[1721051304107,0.0813,63022.0,63009.0,0.08105238]
[1721051304108,0.398654,63022.0,63013.0,0.317393]
[1721051304312,0.158683,63019.0,63014.0,0.158694]
[1721051304517,0.158691,63016.0,63011.0,0.1587]
[1721051304882,0.158688,63017.0,63011.0,0.1587]
[1721051305031,0.0813,63022.0,63008.0,0.00317381]
[1721051305236,0.03446226,63021.0,63008.0,0.00317381]
[1721051305438,0.03446226,63021.0,63013.0,0.001]
[1721051305439,0.476087,63014.0,63013.0,0.001]
[1721051305761,0.158693,63015.0,63013.0,0.001]
[1721051305991,0.317361,63020.0,63013.0,0.001]
[1721051306163,0.158681,63020.0,63015.0,0.158692]
[1721051306339,0.317355,63021.0,63016.0,0.158689]
[1721051306340,0.158678,63021.0,63016.0,0.158689]
[1721051307603,0.158678,63021.0,63017.0,0.158686]
[1721051307933,0.0833,63022.0,63011.0,0.317401]
[1721051308141,0.158686,63018.0,63012.0,0.317397]
[1721051308544,0.322355,63021.0,63014.0,0.158694]
[1721051308545,0.158682,63019.0,63014.0,0.158694]
[1721051308749,0.001,63021.0,63020.0,0.158679]
[1721051308977,0.005,63021.0,63020.0,1.230756]
[1721051309514,0.005,63021.0,63020.0,1.110756]
[1721051309515,0.001,63021.0,63020.0,1.110756]
[1721051309656,0.31728,63036.0,63021.0,0.158676]
[1721051309657,0.317303,63032.0,63021.0,0.158676]
[1721051309858,0.317303,63032.0,63018.0,0.317368]
[1721051310056,0.317303,63032.0,63019.0,0.258681]
[1721051310057,0.002,63022.0,63019.0,0.258681]
[1721051310400,0.002,63022.0,63014.0,0.158694]
[1721051310401,0.158683,63019.0,63014.0,0.158694]
[1721051310602,0.0625,63022.0,63006.0,0.000913]
[1721051310603,0.158705,63010.0,63006.0,0.000913]
[1721051310847,0.0605,63022.0,63006.0,0.000913]
[1721051310848,0.023,63021.0,63006.0,0.000913]
[1721051311051,0.023,63021.0,63012.0,0.158698]
[1721051311207,0.158686,63018.0,63012.0,0.158698]
[1721051311411,0.317376,63017.0,63010.0,0.158704]
[1721051311609,0.158693,63015.0,63010.0,0.158704]
[1721051312153,0.023,63021.0,63007.0,0.317423]
[1721051312154,0.027,63021.0,63007.0,0.158711]
[1721051312328,0.1587,63012.0,63008.0,0.158709]
[1721051312791,0.158696,63014.0,63008.0,0.158709]
[1721051312994,0.158699,63013.0,63008.0,0.158709]
[1721051313202,0.317362,63020.0,63006.0,0.000913]
[1721051313203,0.31737,63018.0,63006.0,0.000913]
[1721051313405,0.158682,63019.0,63014.0,0.158694]
[1721051313631,0.001,63010.0,63009.0,0.476121]
[1721051314033,0.158687,63017.0,63012.0,0.158699]
[1721051314570,0.158687,63017.0,63013.0,0.158697]
[1721051315190,0.317376,63017.0,63010.0,0.158703]
[1721051315381,0.317376,63017.0,63012.0,0.004]
[1721051315382,0.317378,63017.0,63012.0,0.004]
[1721051315583,0.158697,63014.0,63012.0,0.004]
[1721051315805,0.317358,63021.0,63012.0,0.004]
[1721051315806,0.816485,63013.0,63012.0,0.004]
[1721051316009,0.816485,63013.0,63012.0,0.00393375]
[1721051316289,0.958485,63013.0,63012.0,0.00393375]
[1721051316685,0.958485,63013.0,63006.0,0.000913]
[1721051316686,0.793562,63007.0,63006.0,0.000913]
[1721051317103,0.476137,63007.0,63006.0,0.000913]
[1721051318556,0.477137,63007.0,63006.0,0.011913]
[1721051319228,1.111987,63007.0,63006.0,0.011913]
[1721051319464,1.134987,63007.0,63006.0,0.011913]
[1721051319664,1.194987,63007.0,63006.0,0.011913]
[1721051319833,1.254987,63007.0,63006.0,0.011913]
[1721051320018,1.400887,63007.0,63006.0,0.011913]
[1721051320217,1.75660426,63007.0,63006.0,0.011913]
[1721051320619,1.75660525,63007.0,63006.0,0.011913]
[1721051320820,1.75760525,63007.0,63006.0,0.011913]
[1721051321424,1.85760525,63007.0,63006.0,0.011913]
[1721051321675,2.37503025,63007.0,63006.0,0.011913]
[1721051321882,2.47503025,63007.0,63006.0,0.011913]
[1721051322071,2.57779318,63007.0,63006.0,0.011913]
[1721051322484,2.21949993,63007.0,63006.0,0.011913]
[1721051322637,2.57862115,63007.0,63006.0,0.011913]
[1721051322830,2.25862127,63007.0,63006.0,0.011913]
[1721051323145,0.476287,62987.0,62986.0,0.009163]
[1721051323538,0.158758,62989.0,62986.0,0.009163]
[1721051323897,0.317497,62993.0,62986.0,0.009163]
[1721051324107,0.158756,62990.0,62986.0,0.009163]
[1721051324337,0.158762,62987.0,62986.0,0.009163]
[1721051324541,0.476287,62987.0,62986.0,0.009163]
[1721051324740,0.793812,62987.0,62986.0,0.009163]
[1721051325039,0.005,62989.0,62986.0,0.009163]
[1721051325239,0.158755,62990.0,62986.0,0.167927]
[1721051325471,0.158753,62991.0,62987.0,0.158762]
[1721051325714,0.0801,62997.0,62987.0,0.158762]
[1721051325715,0.0757,63005.0,62989.0,0.1411]
[1721051325898,0.0629,63015.0,63005.0,0.317431]
[1721051326115,0.0629,63015.0,63009.0,0.317414]
[1721051326116,0.00097924,63014.0,63009.0,0.317414]
[1721051326279,0.00097924,63014.0,63000.0,0.0031743]
[1721051326280,0.00097924,63014.0,63010.0,0.158704]
[1721051326502,0.00276243,63018.0,63010.0,0.158704]
[1721051326503,0.15467224,63015.0,63010.0,0.158704]
[1721051327321,0.15467224,63015.0,63008.0,0.00097924]
[1721051327322,0.158702,63011.0,63008.0,0.00097924]
[1721051327522,0.158707,63009.0,63008.0,0.00097924]
[1721051327709,0.321387,63015.0,63003.0,0.158721]
[1721051327710,0.06,63025.0,63006.0,0.317426]
[1721051327924,0.0757,63023.0,63008.0,0.317415]
[1721051328174,0.0757,63023.0,63004.0,0.12]
[1721051328175,0.001,63015.0,63012.0,0.158698]
[1721051328502,0.001,63015.0,63010.0,0.009]
[1721051328503,0.002,63015.0,63010.0,0.009]
[1721051328702,0.002,63015.0,63014.0,0.158694]
[1721051329043,0.002,63015.0,63014.0,0.476083]
[1721051329239,0.002,63015.0,63014.0,0.793472]
[1721051329700,0.002,63015.0,63014.0,0.158694]
[1721051329876,0.002,63015.0,63010.0,0.009]
[1721051329877,0.001,63015.0,63010.0,0.009]
[1721051330079,0.001,63015.0,63012.0,0.158698]
[1721051330491,0.001,63015.0,63011.0,0.00097924]
[1721051330688,0.001,63015.0,63010.0,0.009]
[1721051331019,0.001,63015.0,63014.0,0.001]
[1721051331020,0.002,63015.0,63014.0,0.001]
[1721051331245,0.158691,63016.0,63011.0,0.158701]
[1721051331439,0.158696,63014.0,63009.0,0.15968424]
[1721051331650,0.318385,63015.0,63012.0,0.001]
[1721051332025,0.158697,63013.0,63012.0,0.001]
[1721051332229,0.476137,63007.0,63006.0,0.00197924]
[1721051332405,0.476137,63007.0,63006.0,0.001]
[1721051332611,1.15139084,63007.0,63006.0,0.001]